fUST/lending_fUST_20251101
["ID","MTS","AMOUNT","RATE_DAILY","PERIOD"]
[392819595,1761992858062,-445.64481858,0.00025505,2]
[392819596,1761992858091,-500.0,0.00025505,2]
[392819597,1761992858118,-500.0,0.00025505,2]
[392819598,1761992858147,-500.0,0.00025505,2]
[392819599,1761992858173,-500.0,0.00025505,2]
[392819600,1761992858200,-500.0,0.00025505,2]
[392819601,1761992858227,-500.0,0.00025505,2]
[392819602,1761992858254,-500.0,0.00025505,2]
[392819603,1761992858279,-286.48958967,0.00025505,2]
[392819604,1761992858307,-500.0,0.00025505,2]
[392819605,1761992858332,-500.0,0.00025505,2]
[392819606,1761992858357,-500.0,0.00025505,2]
[392819607,1761992858382,-500.0,0.00025505,2]
[392819608,1761992858407,-500.0,0.00025505,2]
[392819609,1761992858433,-500.0,0.00025505,2]
[392819610,1761992858458,-500.0,0.00025505,2]
[392819611,1761992858484,-500.0,0.00025505,2]
[392819612,1761992858510,-500.0,0.00025505,2]
[392819613,1761992858534,-500.0,0.00025505,2]
[392819614,1761992858562,-500.0,0.00025505,2]
[392819615,1761992858588,-500.0,0.00025505,2]
[392819616,1761992858614,-173.38849773,0.00025505,2]
[392819617,1761992858641,-500.0,0.00025505,2]
[392819618,1761992858669,-500.0,0.00025505,2]
[392819619,1761992858694,-500.0,0.00025505,2]
[392819620,1761992858720,-500.0,0.00025505,2]
[392819621,1761992858747,-500.0,0.00025505,2]
[392819622,1761992858774,-500.0,0.00025505,2]
[392819623,1761992858800,-500.0,0.00025505,2]
[392819624,1761992858828,-500.0,0.00025505,2]
[392819625,1761992858854,-500.0,0.00025505,2]
[392819626,1761992858882,-500.0,0.00025505,2]
[392819627,1761992858909,-500.0,0.00025505,2]
[392819628,1761992858936,-500.0,0.00025505,2]
[392819629,1761992858962,-500.0,0.00025505,2]
[392819630,1761992858988,-500.0,0.00025505,2]
[392819631,1761992859014,-46.98227504,0.00025505,2]
[392819632,1761992859467,-453.01772496,0.00025505,2]
[392819633,1761992859493,-500.0,0.00025505,2]
[392819634,1761992859518,-500.0,0.00025505,2]
[392819635,1761992859543,-500.0,0.00025505,2]
[392819636,1761992859566,-500.0,0.00025505,2]
[392819637,1761992859592,-500.0,0.00025505,2]
[392819638,1761992859618,-500.0,0.00025505,2]
[392819639,1761992859643,-500.0,0.00025505,2]
[392819640,1761992859667,-500.0,0.00025505,2]
[392819641,1761992859694,-500.0,0.00025505,2]
[392819642,1761992859718,-500.0,0.00025505,2]
[392819643,1761992859743,-500.0,0.00025505,2]
[392819644,1761992859767,-500.0,0.00025505,2]
[392819645,1761992859791,-500.0,0.00025505,2]
[392819646,1761992859816,-612.54009741,0.00025505,2]
[392819647,1761992859841,-500.0,0.00025505,2]
[392819648,1761992859866,-500.0,0.00025505,2]
[392819649,1761992859890,-500.0,0.00025505,2]
[392819650,1761992859915,-500.0,0.00025505,2]
[392819651,1761992859938,-500.0,0.00025505,2]
[392819652,1761992859963,-500.0,0.00025505,2]
[392819653,1761992859987,-500.0,0.00025505,2]
[392819654,1761992860010,-500.0,0.00025505,2]
[392819655,1761992860035,-500.0,0.00025505,2]
[392819656,1761992860070,-500.0,0.00025505,2]
[392819657,1761992860096,-500.0,0.00025505,2]
[392819658,1761992860120,-500.0,0.00025505,2]
[392819659,1761992860145,-500.0,0.00025505,2]
[392819660,1761992860168,-500.0,0.00025505,2]
[392819661,1761992860194,-500.0,0.00025505,2]
[392819662,1761992860219,-500.0,0.00025505,2]
[392819663,1761992860244,-500.0,0.00025505,2]
[392819664,1761992860269,-500.0,0.00025505,2]
[392819665,1761992860294,-500.0,0.00025505,2]
[392819666,1761992860431,-500.0,0.00025505,2]
[392819667,1761992860456,-500.0,0.00025505,2]
[392819668,1761992860482,-500.0,0.00025505,2]
[392819669,1761992860506,-500.0,0.00025505,2]
[392819670,1761992860530,-500.0,0.00025505,2]
[392819671,1761992860554,-500.0,0.00025505,2]
[392819672,1761992860578,-500.0,0.00025505,2]
[392819673,1761992860601,-500.0,0.00025505,2]
[392819674,1761992860626,-615.22064902,0.00025505,2]
[392819675,1761992860650,-500.0,0.00025505,2]
[392819676,1761992860676,-500.0,0.00025505,2]
[392819677,1761992860700,-500.0,0.00025505,2]
[392819678,1761992860724,-500.0,0.00025505,2]
[392819679,1761992860748,-500.0,0.00025505,2]
[392819680,1761992860773,-500.0,0.00025505,2]
[392819681,1761992860797,-500.0,0.00025505,2]
[392819682,1761992860822,-500.0,0.00025505,2]
[392819683,1761992860847,-500.0,0.00025505,2]
[392819684,1761992860870,-500.0,0.00025505,2]
[392819685,1761992860895,-500.0,0.00025505,2]
[392819686,1761992860920,-500.0,0.00025505,2]
[392819687,1761992860944,-500.0,0.00025505,2]
[392819688,1761992860968,-500.0,0.00025505,2]
[392819689,1761992860991,-300.0,0.00025505,2]
[392819690,1761992861017,-500.0,0.00025505,2]
[392819691,1761992861041,-500.0,0.00025505,2]
[392819692,1761992861067,-500.0,0.00025505,2]
[392819693,1761992861089,-170.0,0.00025505,2]
[392819694,1761992861112,-300.0,0.00025505,2]
[392819695,1761992861136,-544.18811949,0.00025506,2]
[392819696,1761992861159,-150.00000066,0.00025506,2]
[392819697,1761992861182,-511.0116473,0.00025506,2]
[392819698,1761992861205,-17214.7777131,0.00025507,2]
[392819699,1761992861229,-629.24404806,0.00025507,2]
[392819700,1761992861257,-32108.78250384,0.00025507,2]
[392819701,1761992861281,-166.66,0.00025511,2]
[392819702,1761992861304,-227.2505305,0.00025512,2]
[392819703,1761992861329,-187.93522224,0.00025512,2]
[392819704,1761992861352,-225.6286586,0.00025515,2]
[392819705,1761992861376,-17083.74308482,0.00025517,2]
[392819706,1761992861405,309.52141623,0.0002876,120]
[392819707,1761992861434,-50000.0,0.00025517,2]
[392819708,1761992861462,2226.57802064,0.00018,2]
[392819709,1761992861485,1319.60728757,0.00018,2]
[392819710,1761992861535,-50000.0,0.00025517,2]
[392819711,1761992862901,-50000.0,0.00025517,2]
[392819712,1761992863671,-50000.0,0.00025517,2]
[392819713,1761992864425,-50000.0,0.00025517,2]
[392819714,1761992865218,-50000.0,0.00025517,2]
[392819715,1761992866137,-50000.0,0.00025517,2]
[392819716,1761992876654,8680.40271243,0.00025377,2]
[392819717,1761992876676,1319.59728757,0.00025377,2]
[392819720,1761992888679,188.0,0.0002,120]
[392819721,1761992902192,322.03491677,0.0003,120]
[392819722,1761992902957,153.61174146,0.00038079,30]
[392819723,1761992903008,694.78041314,0.00021,10]
[392819724,1761992904745,838.38334992,0.0003,120]
[392819725,1761992904800,370.21683732,0.00025,120]
[392819726,1761992905079,493.90380827,0.00025,120]
[392819727,1761992905381,657.90657511,0.00024,60]
[392819728,1761992906306,1377.54449564,0.0002061,2]
[392819729,1761992906363,325.16962237,0.00028,120]
[392819730,1761992906534,188.90571407,0.00028,120]
[392819731,1761992906642,363.67010657,0.0003,120]
[392819733,1761992907406,169.91305169,0.00022,10]
[392819735,1761992908719,208.41136974,0.00027,120]
[392819736,1761992909963,150.99999907,0.0002,120]
[392819737,1761992910362,753.51414307,0.0003,120]
[392819738,1761992910733,183.02214511,0.00038079,30]
[392819739,1761992911487,351.18368157,0.00028767,120]
[392819740,1761992911648,265.45323242,0.00025,120]
[392819741,1761992911913,295.06837309,0.00027397,120]
[392819742,1761992911943,225.41382608,0.0001536,120]
[392819743,1761992912654,578.86694511,0.000295,120]
[392819744,1761992913014,166.589999,0.00038079,30]
[392819747,1761992913943,381.75464594,0.00038079,120]
[392819748,1761992913979,205.49901009,0.00021,2]
[392819749,1761992914032,410.00004192,0.0003,120]
[392819750,1761992914393,5339.85368821,0.00023,2]
[392819751,1761992914506,399.16837528,0.00026,120]
[392819752,1761992914730,234.91547855,0.000235,2]
[392819753,1761992914753,765.08452145,0.000235,2]
[392819754,1761992914789,432.2554125,0.00025,120]
[392819755,1761992914964,324.79873056,0.0003013,120]
[392819756,1761992915680,36301.48848995,0.00038079,30]
[392819757,1761992916156,420.89872531,0.00022372,120]
[392819758,1761992916240,9234.92547855,0.00024142,2]
[392819759,1761992916262,10000.01,0.00024142,2]
[392819760,1761992916284,10000.01,0.00024142,2]
[392819761,1761992916306,10000.01,0.00024142,2]
[392819762,1761992916331,10000.01,0.00024142,2]
[392819763,1761992916353,10000.01,0.00024142,2]
[392819764,1761992916375,10000.01,0.00024142,2]
[392819765,1761992916395,10000.01,0.00024142,2]
[392819766,1761992916415,8052.56248476,0.00024142,2]
[392819767,1761992917049,284.42978421,0.00028,120]
[392819768,1761992917091,211.05771468,0.00026,120]
[392819769,1761992917605,295.10047563,0.00023,118]
[392819770,1761992918115,258.95062859,0.0003,120]
[392819771,1761992922292,-300.0,0.000255,2]
[392819772,1761992922796,5000.0,0.00025206,2]
[392819773,1761992928075,200.0,0.00032,120]
[392819774,1761992929388,-271.73831318,0.00025516,2]
[392819775,1761992929414,-500.0,0.00025516,2]
[392819776,1761992929441,-500.0,0.00025516,2]
[392819777,1761992929466,-500.0,0.00025516,2]
[392819778,1761992929491,-591.5220649,0.00025516,2]
[392819779,1761992929516,-500.0,0.00025516,2]
[392819780,1761992929541,-500.0,0.00025516,2]
[392819781,1761992929566,-185.9320553,0.00025516,2]
[392819782,1761992929592,-198.4988433,0.00025516,2]
[392819783,1761992929616,-500.0,0.00025516,2]
[392819784,1761992929640,-234.72667749,0.00025516,2]
[392819785,1761992929664,-500.0,0.00025516,2]
[392819786,1761992929687,-500.0,0.00025516,2]
[392819787,1761992929711,-500.0,0.00025516,2]
[392819788,1761992929736,-44017.58204583,0.00025517,2]
[392819789,1761992930578,5000.0,0.000255,2]
[392819790,1761992931915,-12070.10366329,0.00025517,2]
[392819791,1761992931938,-500.0,0.00025573,2]
[392819792,1761992931963,-500.0,0.00025573,2]
[392819793,1761992931988,-500.0,0.00025573,2]
[392819794,1761992932015,-500.0,0.00025573,2]
[392819795,1761992932046,-791.35,0.000256,7]
[392819796,1761992932074,-1015.059722,0.00026,30]
[392819797,1761992935679,150.0,1.04e-06,2]
[392819798,1761992936033,291.66953083,0.00025613,2]
[392819799,1761992936735,150.0,1.04e-06,2]
[392819800,1761992937808,150.0,1.04e-06,2]
[392819801,1761992938696,513.5391568,0.00026,2]
[392819802,1761992938985,150.0,1.04e-06,2]
[392819803,1761992940109,150.0,1.04e-06,2]
[392819804,1761992941169,150.0,1.04e-06,2]
[392819805,1761992946462,5000.0,0.00026,2]
[392819806,1761992954389,200.0,0.00032,120]
[392819807,1761992954489,5000.0,0.00026,2]
[392819808,1761992966882,300.0,0.000252,2]
[392819809,1761992969695,5000.0,0.00026,2]
[392819810,1761992977355,5000.0,0.00026,2]
[392819811,1761992977782,300.0,0.000252,2]
[392819812,1761992988265,300.0,0.000252,2]
[392819813,1761992992311,5000.0,0.00026,2]
[392819814,1761992996727,650.0,0.00032,120]
[392819815,1761992998573,300.0,0.000252,2]
[392819816,1761993000319,5000.0,0.00026,2]
[392819818,1761993006852,1218.27792708,0.00025405,2]
[392819819,1761993006882,50000.0,0.00025405,2]
[392819820,1761993006908,39700.0,0.00025405,2]
[392819821,1761993006933,50000.0,0.00025405,2]
[392819822,1761993006954,258.61786551,0.00025405,2]
[392819823,1761993009070,300.0,0.000252,2]
[392819826,1761993014368,-179.84,0.00025395,2]
[392819827,1761993015293,500.0,0.000253,2]
[392819828,1761993015655,5000.0,0.00025405,2]
[392819829,1761993016552,-50000.0,0.00025405,2]
[392819830,1761993017409,-50000.0,0.00025405,2]
[392819831,1761993018160,-50000.0,0.00025405,2]
[392819832,1761993019123,615.1,0.00032877,120]
[392819833,1761993019153,-50000.0,0.00025405,2]
[392819834,1761993020021,-43283.90964792,0.00025405,2]
[392819835,1761993024092,5000.0,0.00026,2]
[392819857,1761993036890,-600.0,0.00026021,20]
[392819859,1761993036900,-516.0,0.00026121,2]
[392819861,1761993036910,-198.0,0.00026712,21]
[392819863,1761993036919,-344.17004638,0.00027613,2]
[392819865,1761993036928,-4664.19413521,0.0002787,2]
[392819866,1761993036937,-500.0,0.00027873,5]
[392819868,1761993036946,-299.2778488,0.00027873,5]
[392819870,1761993036958,-200.7221512,0.00027873,5]
[392819879,1761993037056,-213.0,0.00028356,29]
[392819881,1761993037068,-160.25648675,0.00028421,5]
[392819883,1761993037080,-853.96724749,0.00028421,5]
[392819885,1761993037089,-613.20888061,0.00028623,30]
[392819939,1761993038283,-106.79111939,0.00028623,30]
[392819941,1761993038293,-534.01,0.00029041,12]
[392819942,1761993038302,-534.01,0.00029315,13]
[392819944,1761993038312,-525.3198448,0.00029589,14]
[392819953,1761993038390,-8.6901552,0.00029589,14]
[392819955,1761993038400,-396.67056193,0.00029613,2]
[392819957,1761993038409,-534.01,0.00029863,15]
[392819958,1761993038418,-334.54082084,0.00029999,2]
[392819960,1761993038427,-408.0915685,0.0003,10]
[392819962,1761993038436,-1584.84342875,0.0003,10]
[392819964,1761993038445,-236.09510265,0.0003,45]
[392819966,1761993038457,-74.90489735,0.0003,45]
[392819968,1761993038467,-246.54603947,0.00030026,2]
[392819970,1761993038476,-266.46500448,0.0003013,30]
[392819972,1761993038487,-155.78322995,0.0003013,30]
[392819974,1761993038496,-534.01,0.00030136,16]
[392819975,1761993038505,-534.01,0.0003041,17]
[392819977,1761993038514,-163.0,0.00030548,40]
[392819978,1761993038523,-534.01,0.00030684,18]
[392819980,1761993038532,-405.64517705,0.0003079,30]
[392820034,1761993039147,1716.09035208,0.00026,2]
[392820064,1761993040846,-144.65246871,0.00026,2]
[392820065,1761993040857,-3139.25717921,0.00026,2]
[392820066,1761993040867,-281.48653876,0.0003079,30]
[392820067,1761993040876,-534.01,0.00030958,19]
[392820068,1761993040885,-350.0,0.00031,60]
[392820069,1761993040894,-534.01,0.00031232,20]
[392820070,1761993040903,-403.0,0.00031485,30]
[392820071,1761993040912,-534.01,0.00031506,21]
[392820072,1761993040922,-449.17107748,0.00031613,2]
[392820073,1761993040931,-534.01,0.0003178,22]
[392820074,1761993040941,-534.01,0.00032054,23]
[392820075,1761993040950,-534.01,0.00032328,24]
[392820076,1761993040959,-534.01,0.00032602,25]
[392820077,1761993040969,-175.0,0.0003274,55]
[392820078,1761993040978,-534.01,0.00032876,26]
[392820079,1761993040987,-157.81,0.000329,2]
[392820080,1761993040996,-441.27383735,0.00033,120]
[392820081,1761993041005,-300.0,0.00033,120]
[392820082,1761993041018,-160.0,0.00033017,2]
[392820083,1761993041027,-160.0,0.00033017,2]
[392820084,1761993041036,-160.0,0.00033017,2]
[392820085,1761993041046,-307.0,0.00033022,120]
[392820086,1761993041055,-534.01,0.0003315,27]
[392820087,1761993041065,-160.0,0.00033153,2]
[392820088,1761993041075,-403.98447456,0.00033153,2]
[392820089,1761993041085,-511.0,0.00033175,120]
[392820090,1761993041095,-534.01,0.00033424,28]
[392820091,1761993041104,-2239.17596329,0.00033598,2]
[392820092,1761993041114,-501.67159303,0.00033613,120]
[392820093,1761993041124,-534.01,0.00033698,29]
[392820094,1761993041133,-307.0,0.00033815,120]
[392820095,1761993041143,-534.13017245,0.00033972,30]
[392820096,1761993041152,-200.0,0.00034,120]
[392820097,1761993041161,-157.81,0.00034,2]
[392820098,1761993041171,-171.0,0.00034155,120]
[392820099,1761993041180,-307.0,0.00034673,120]
[392820100,1761993041189,-399.05800721,0.00034727,7]
[392820101,1761993041197,-1363.0932347,0.00034728,12]
[392820102,1761993041206,-511.0,0.00034834,120]
[392820103,1761993041216,-14394.85389181,0.00034998,2]
[392820104,1761993041225,-154.0,0.00035,120]
[392820105,1761993041234,-476.32900262,0.00035,120]
[392820106,1761993041246,-208.0,0.00035,120]
[392820107,1761993041255,-157.81,0.000351,2]
[392820108,1761993041265,-307.0,0.00035506,120]
[392820109,1761993041274,-1052.01419357,0.00035606,3]
[392820110,1761993041283,-554.17210858,0.00035613,120]
[392820111,1761993041292,-1000.0,0.00035616,4]
[392820112,1761993041302,-620.0,0.00035616,4]
[392820113,1761993041311,-500.0,0.00035616,4]
[392820114,1761993041320,-324.97060393,0.00035616,4]
[392820115,1761993041329,-1008.71496045,0.00035616,2]
[392820116,1761993041338,-500.0,0.00035616,2]
[392820117,1761993041347,-178.22483695,0.00035616,4]
[392820118,1761993041356,-300.0,0.00035616,4]
[392820119,1761993041365,-500.0,0.00035616,30]
[392820120,1761993041375,-412.0,0.00035619,2]
[392820121,1761993041385,-171.0,0.00035862,120]
[392820122,1761993041394,-1000.0,0.0003589,4]
[392820123,1761993041403,-500.0,0.0003589,4]
[392820124,1761993041412,-500.0,0.0003589,2]
[392820125,1761993041421,-500.0,0.0003589,30]
[392820126,1761993041430,-200.0,0.00036,120]
[392820127,1761993041439,-159.0,0.00036027,84]
[392820128,1761993041449,-1000.0,0.00036164,4]
[392820129,1761993041459,-500.0,0.00036164,4]
[392820130,1761993041468,-500.0,0.00036164,2]
[392820131,1761993041478,-500.0,0.00036164,30]
[392820132,1761993041488,-157.81,0.000362,2]
[392820133,1761993041498,-203.72285363,0.0003621,2]
[392820134,1761993041507,-264.98686909,0.0003624,2]
[392820135,1761993041517,-154.0,0.000364,120]
[392820136,1761993041526,-307.0,0.00036407,120]
[392820137,1761993041536,-1000.0,0.00036438,4]
[392820138,1761993041545,-500.0,0.00036438,4]
[392820139,1761993041554,-500.0,0.00036438,2]
[392820140,1761993041564,-509.61,0.00036438,30]
[392820141,1761993041573,-200.0,0.000365,120]
[392820142,1761993041582,-200.0,0.000365,120]
[392820143,1761993041592,-1002.1754419,0.00036712,4]
[392820144,1761993041601,-500.0,0.00036712,4]
[392820145,1761993041610,-500.0,0.00036712,2]
[392820146,1761993041620,-259.28081772,0.00036986,4]
[392820147,1761993041629,-500.0,0.00036986,2]
[392820148,1761993041639,-500.0,0.0003726,2]
[392820149,1761993041648,-150.0,0.000375,120]
[392820150,1761993041657,-150.0,0.000375,120]
[392820151,1761993041667,-500.0,0.00037534,2]
[392820152,1761993041676,-606.67262413,0.00037613,120]
[392820153,1761993041685,-171.0,0.00037655,120]
[392820154,1761993041695,-500.0,0.00037808,2]
[392820155,1761993041705,-2432.09198364,0.00037889,42]
[392820156,1761993041716,-154.0,0.000379,120]
[392820157,1761993041725,-158.0,0.00038,120]
[392820158,1761993041734,-200.0,0.00038,120]
[392820159,1761993041744,-503.42995134,0.00038053,14]
[392820160,1761993041754,-405.85183469,0.00038079,20]
[392820161,1761993041763,-150.0,0.00038079,20]
[392820162,1761993041773,-161.721,0.00038079,2]
[392820163,1761993041782,-155.0,0.00038079,2]
[392820164,1761993041792,-1324.09079984,0.00038079,2]
[392820165,1761993041802,-300.0,0.00038079,2]
[392820166,1761993041812,-813.08855579,0.00038079,2]
[392820167,1761993041821,-259.280767,0.00038079,2]
[392820168,1761993041831,-2101.100714,0.00038079,2]
[392820169,1761993041841,-328.37591845,0.00038079,2]
[392820170,1761993041850,-293.06767139,0.00038079,2]
[392820171,1761993041860,-305.22593958,0.00038079,14]
[392820172,1761993041870,-639.90862186,0.00038079,2]
[392820173,1761993041879,-1367.54109409,0.00038079,2]
[392820174,1761993041889,-157.27544868,0.00038079,2]
[392820175,1761993041898,-436.80499087,0.00038079,2]
[392820176,1761993041908,-705.49116191,0.00038079,2]
[392820177,1761993041918,-158.27894969,0.00038079,2]
[392820178,1761993041928,-1724.41089621,0.00038079,2]
[392820179,1761993041938,-2085.26451122,0.00038079,2]
[392820180,1761993041947,-509.78975242,0.00038079,2]
[392820181,1761993041957,-180.07758352,0.00038079,2]
[392820182,1761993041966,-469.88564528,0.00038079,2]
[392820183,1761993041975,-991.01127907,0.00038079,2]
[392820184,1761993041985,-189.9573845,0.00038079,2]
[392820185,1761993041994,-1199.99298682,0.00038079,2]
[392820186,1761993042003,-1402.74797529,0.00038079,2]
[392820187,1761993042013,-653.90417795,0.00038079,2]
[392820188,1761993042024,-203.81636136,0.00038079,2]
[392820189,1761993042034,-1448.68252669,0.00038079,2]
[392820190,1761993042044,-386.45273601,0.00038079,2]
[392820191,1761993042053,-202.18639292,0.00038079,2]
[392820192,1761993042063,-167.26507473,0.00038079,2]
[392820193,1761993042072,-366.15256246,0.00038079,2]
[392820194,1761993042082,-150.96776321,0.00038079,2]
[392820195,1761993042092,-259.61473839,0.00038079,2]
[392820196,1761993042102,-2005.421091,0.00038079,2]
[392820197,1761993042112,-1667.36284902,0.00038079,2]
[392820198,1761993042121,-180.0,0.0003808,120]
[392820199,1761993042131,-180.0,0.0003808,120]
[392820200,1761993042140,-180.0,0.0003808,120]
[392820201,1761993042149,-180.0,0.0003808,120]
[392820202,1761993042158,-180.0,0.0003808,120]
[392820203,1761993042167,-180.0,0.0003808,120]
[392820204,1761993042176,-180.0,0.0003808,120]
[392820205,1761993042185,-180.0,0.0003808,120]
[392820206,1761993042194,-315.40922174,0.0003808,120]
[392820207,1761993042204,-500.0,0.00038082,2]
[392820208,1761993042213,-307.0,0.00038227,120]
[392820209,1761993042222,-500.0,0.00038356,2]
[392820210,1761993042232,-2449.20865594,0.00038399,2]
[392820211,1761993042241,-287.19078181,0.00038482,20]
[392820212,1761993042251,-200.0,0.000386,120]
[392820213,1761993042261,-200.0,0.000386,120]
[392820214,1761993042271,-286.723,0.00038619,2]
[392820215,1761993042280,-352.79134517,0.0003863,2]
[392820216,1761993042289,-154.0,0.000393,120]
[392820217,1761993042299,-2239.17596326,0.00039419,2]
[392820218,1761993042308,-171.0,0.00039538,120]
[392820219,1761993042318,-659.17313968,0.00039613,120]
[392820220,1761993042327,-417.9730079,0.00039999,31]
[392820221,1761993042412,-380.93168364,0.00039999,31]
[392820222,1761993042422,-200.0,0.0004,120]
[392820223,1761993042431,-307.13636613,0.0004,120]
[392820224,1761993042440,-1209.27472882,0.0004,14]
[392820225,1761993042449,-307.0,0.00040138,120]
[392820226,1761993042458,-982.95,0.000405,15]
[392820227,1761993042468,-209.70937,0.000407,120]
[392820228,1761993042478,-239.23509,0.000407,120]
[392820229,1761993042488,-154.0,0.000408,120]
[392820230,1761993042498,-166.0,0.00040959,120]
[392820231,1761993042507,-352.47,0.00041096,120]
[392820232,1761993042516,-1179.16,0.000411,15]
[392820233,1761993042525,-381.96,0.000411,15]
[392820234,1761993042535,-200.0,0.000414,120]
[392820235,1761993042545,-171.0,0.00041515,120]
[392820236,1761993042554,-711.67365523,0.00041613,120]
[392820237,1761993042563,-266.0,0.000419,15]
[392820238,1761993042573,-266.0,0.000419,15]
[392820239,1761993042582,-200.0,0.00042,120]
[392820240,1761993042591,-156.30571724,0.00042,120]
[392820241,1761993042601,-307.0,0.00042145,120]
[392820242,1761993042611,-154.0,0.000422,120]
[392820243,1761993042620,-704.17029786,0.0004255,15]
[392820244,1761993042630,-286.00097043,0.00043,120]
[392820245,1761993042639,-1849.07,0.0004318,15]
[392820246,1761993042649,-1174.014698,0.0004348,16]
[392820247,1761993042658,-1126.274149,0.000435,16]
[392820248,1761993042667,-1000.0,0.000435,16]
[392820249,1761993042677,-171.0,0.00043591,120]
[392820250,1761993042687,-764.17417078,0.00043613,120]
[392820251,1761993042696,-154.0,0.000437,120]
[392820252,1761993042706,-500.0,0.0004378,30]
[392820253,1761993042717,-507.38636323,0.0004378,30]
[392820254,1761993042728,-1413.38,0.000439,15]
[392820255,1761993042737,-200.0,0.00044,120]
[392820256,1761993042747,-325.987708,0.000442,120]
[392820257,1761993042757,-307.0,0.00044253,120]
[392820258,1761993042767,-1052.01419357,0.0004429,3]
[392820259,1761993042776,-205.71385266,0.000443,120]
[392820260,1761993042786,-163.69398082,0.000443,120]
[392820261,1761993042795,-209.42078476,0.000443,120]
[392820262,1761993042804,-319.17089944,0.000443,120]
[392820263,1761993042815,-176.67002494,0.000443,120]
[392820264,1761993042824,-241.74575897,0.000443,120]
[392820265,1761993042834,-395.57859883,0.000443,120]
[392820266,1761993042843,-220.72967173,0.000443,120]
[392820267,1761993042853,-195.79953698,0.000443,120]
[392820268,1761993042862,-503.0,0.00044608,15]
[392820269,1761993042872,-660.22402558,0.000447,120]
[392820270,1761993042881,-1116.28195187,0.000449,120]
[392820271,1761993042890,-150.0,0.00045,120]
[392820272,1761993042899,-872.09188113,0.00045,20]
[392820274,1761993042910,-167.7296404,0.00045,120]
[392820275,1761993042919,-662.16486331,0.00045,120]
[392820276,1761993042928,-272.30433116,0.00045,120]
[392820277,1761993042937,-830.12434189,0.00045,120]
[392820278,1761993042946,-154.0,0.000451,120]
[392820279,1761993042955,-2239.17596326,0.0004524,28]
[392820280,1761993042964,-635.12,0.000453,15]
[392820281,1761993042973,-325.987708,0.000456,120]
[392820282,1761993042983,-205.71385266,0.000456,120]
[392820283,1761993042992,-163.69398082,0.000456,120]
[392820284,1761993043001,-209.42078476,0.000456,120]
[392820285,1761993043011,-395.57859883,0.000456,120]
[392820286,1761993043025,-816.67468632,0.00045613,120]
[392820287,1761993043035,-160.0,0.000457,14]
[392820288,1761993043044,-171.0,0.0004577,120]
[392820289,1761993043055,-200.0,0.00046,120]
[392820290,1761993043064,-307.0,0.00046465,120]
[392820291,1761993043074,-200.0,0.00046505,120]
[392820292,1761993043085,-200.0,0.00046505,120]
[392820293,1761993043097,-200.0,0.00046505,120]
[392820294,1761993043106,-200.0,0.0004657,120]
[392820295,1761993043115,-200.0,0.0004657,120]
[392820296,1761993043124,-200.0,0.0004657,120]
[392820298,1761993043136,-154.0,0.000466,120]
[392820299,1761993043145,-325.987708,0.000469,120]
[392820300,1761993043156,-1000.0,0.00047,120]